[Event "Late-Titled-Tuesday-Blitz-March-19-2024"]
[Site "Chess.com"]
[Date "2024.03.19"]
[Round "10"]
[White "Adar_07"]
[Black "Shahdad2007"]
[Result "1-0"]
[WhiteElo "2822"]
[BlackElo "2602"]
[TimeControl "180+1"]
[EndTime "15:55:33 PDT"]
[Termination "Adar_07 won by checkmate"]

1. d4 {[%clk 0:03:00.9]} 1... Nf6 {[%clk 0:02:58.2]} 2. Bf4 {[%clk 0:03:00.5]}
2... c5 {[%clk 0:02:56.7]} 3. c3 {[%clk 0:03:00]} 3... d5 {[%clk 0:02:56.1]} 4.
e3 {[%clk 0:02:59.7]} 4... Nc6 {[%clk 0:02:56]} 5. Nf3 {[%clk 0:02:56.8]} 5...
Qb6 {[%clk 0:02:56.4]} 6. Qc1 {[%clk 0:02:54.5]} 6... Bf5 {[%clk 0:02:50.6]} 7.
a4 {[%clk 0:02:53.8]} 7... e6 {[%clk 0:02:49]} 8. Bb5 {[%clk 0:02:47.2]} 8... a6
{[%clk 0:02:47.8]} 9. Bxc6+ {[%clk 0:02:46.9]} 9... Qxc6 {[%clk 0:02:47.9]} 10.
Ne5 {[%clk 0:02:45.1]} 10... Qc8 {[%clk 0:02:47.7]} 11. Nd2 {[%clk 0:02:43.6]}
11... Be7 {[%clk 0:02:46.9]} 12. h4 {[%clk 0:02:42.3]} 12... O-O {[%clk
0:02:45.6]} 13. h5 {[%clk 0:02:40.4]} 13... h6 {[%clk 0:02:44.6]} 14. f3 {[%clk
0:02:27.6]} 14... Nd7 {[%clk 0:02:34.4]} 15. g4 {[%clk 0:02:26.8]} 15... Bh7
{[%clk 0:02:32.9]} 16. Rg1 {[%clk 0:02:01.1]} 16... f6 {[%clk 0:02:16.3]} 17.
Nxd7 {[%clk 0:01:35.1]} 17... Qxd7 {[%clk 0:02:17.2]} 18. Nb3 {[%clk 0:01:32.4]}
18... e5 {[%clk 0:02:07.5]} 19. Bh2 {[%clk 0:01:32.4]} 19... c4 {[%clk
0:02:00.2]} 20. Nd2 {[%clk 0:01:30]} 20... exd4 {[%clk 0:01:57.7]} 21. exd4
{[%clk 0:01:30.6]} 21... Bd6 {[%clk 0:01:56.6]} 22. Bxd6 {[%clk 0:01:22.9]}
22... Qxd6 {[%clk 0:01:57.5]} 23. Kf2 {[%clk 0:01:23.1]} 23... Rfe8 {[%clk
0:01:51.7]} 24. Nf1 {[%clk 0:01:22.5]} 24... Bd3 {[%clk 0:01:48.5]} 25. Ng3
{[%clk 0:01:22.4]} 25... Re7 {[%clk 0:01:16.9]} 26. Qd2 {[%clk 0:01:20.7]} 26...
Rae8 {[%clk 0:01:13.2]} 27. Rge1 {[%clk 0:01:19.4]} 27... Qd7 {[%clk 0:01:13.3]}
28. a5 {[%clk 0:01:16.3]} 28... Qd6 {[%clk 0:01:06.5]} 29. Rxe7 {[%clk
0:00:43.4]} 29... Rxe7 {[%clk 0:01:05.6]} 30. b4 {[%clk 0:00:43.9]} 30... f5
{[%clk 0:00:51]} 31. gxf5 {[%clk 0:00:40.8]} 31... Bxf5 {[%clk 0:00:50.1]} 32.
Re1 {[%clk 0:00:39.3]} 32... Bd3 {[%clk 0:00:44.9]} 33. Rxe7 {[%clk 0:00:34.1]}
33... Qxe7 {[%clk 0:00:45.8]} 34. Qf4 {[%clk 0:00:33.4]} 34... Kh7 {[%clk
0:00:41.8]} 35. Qe5 {[%clk 0:00:28.8]} 35... Qf7 {[%clk 0:00:40.3]} 36. Ke3
{[%clk 0:00:20.5]} 36... Kg8 {[%clk 0:00:38.7]} 37. Nh1 {[%clk 0:00:18.3]} 37...
Kf8 {[%clk 0:00:36.7]} 38. Nf2 {[%clk 0:00:18.1]} 38... Bf5 {[%clk 0:00:35.8]}
39. Qb8+ {[%clk 0:00:12.4]} 39... Qe8+ {[%clk 0:00:31.6]} 40. Qxe8+ {[%clk
0:00:12.9]} 40... Kxe8 {[%clk 0:00:32.5]} 41. Kf4 {[%clk 0:00:13.5]} 41... Be6
{[%clk 0:00:31.6]} 42. Ke5 {[%clk 0:00:13.8]} 42... Bf7 {[%clk 0:00:31.8]} 43.
Ng4 {[%clk 0:00:11.3]} 43... Ke7 {[%clk 0:00:21.5]} 44. Ne3 {[%clk 0:00:09.6]}
44... Bxh5 {[%clk 0:00:21.1]} 45. Nxd5+ {[%clk 0:00:09.7]} 45... Kf7 {[%clk
0:00:20.2]} 46. f4 {[%clk 0:00:09.8]} 46... Bf3 {[%clk 0:00:18.2]} 47. Ne3
{[%clk 0:00:09.3]} 47... Be2 {[%clk 0:00:17.5]} 48. d5 {[%clk 0:00:06.5]} 48...
h5 {[%clk 0:00:16.7]} 49. Nf5 {[%clk 0:00:06.8]} 49... g6 {[%clk 0:00:15.4]} 50.
Nh4 {[%clk 0:00:06.6]} 50... Bg4 {[%clk 0:00:13.9]} 51. d6 {[%clk 0:00:05.9]}
51... Be6 {[%clk 0:00:11.3]} 52. Nf3 {[%clk 0:00:06.3]} 52... Bd7 {[%clk
0:00:09.1]} 53. Ng5+ {[%clk 0:00:04.3]} 53... Kg7 {[%clk 0:00:09.2]} 54. Ne6+
{[%clk 0:00:03.8]} 54... Kf7 {[%clk 0:00:09.4]} 55. Nc5 {[%clk 0:00:03.9]} 55...
Ke8 {[%clk 0:00:09.7]} 56. f5 {[%clk 0:00:02.9]} 56... gxf5 {[%clk 0:00:09.2]}
57. Nxb7 {[%clk 0:00:02.7]} 57... h4 {[%clk 0:00:09.1]} 58. Kf4 {[%clk
0:00:02.8]} 58... h3 {[%clk 0:00:09.5]} 59. Kg3 {[%clk 0:00:02.7]} 59... f4+
{[%clk 0:00:09.9]} 60. Kh2 {[%clk 0:00:02.4]} 60... f3 {[%clk 0:00:08.5]} 61.
Kg3 {[%clk 0:00:03.1]} 61... Kf7 {[%clk 0:00:05.8]} 62. Nc5 {[%clk 0:00:02.9]}
62... Ke8 {[%clk 0:00:06.1]} 63. Kxf3 {[%clk 0:00:02.3]} 63... h2 {[%clk
0:00:05.5]} 64. Kg2 {[%clk 0:00:02.7]} 64... Bc6+ {[%clk 0:00:06.2]} 65. Kxh2
{[%clk 0:00:02.9]} 65... Bb5 {[%clk 0:00:06.3]} 66. Kg3 {[%clk 0:00:03.3]} 66...
Kd8 {[%clk 0:00:05.6]} 67. Kf4 {[%clk 0:00:03.8]} 67... Bc6 {[%clk 0:00:06.5]}
68. Ke5 {[%clk 0:00:04.4]} 68... Bd5 {[%clk 0:00:07]} 69. Kxd5 {[%clk
0:00:03.9]} 69... Kc8 {[%clk 0:00:07.9]} 70. Nxa6 {[%clk 0:00:04.5]} 70... Kb7
{[%clk 0:00:08.1]} 71. Nc5+ {[%clk 0:00:05.4]} 71... Ka7 {[%clk 0:00:07.8]} 72.
b5 {[%clk 0:00:06.3]} 72... Kb8 {[%clk 0:00:08]} 73. b6 {[%clk 0:00:07.2]} 73...
Kc8 {[%clk 0:00:08.3]} 74. Ke6 {[%clk 0:00:06.7]} 74... Kb8 {[%clk 0:00:09.2]}
75. d7 {[%clk 0:00:06.6]} 75... Ka8 {[%clk 0:00:09.8]} 76. d8=R# {[%clk
0:00:06.4]} 1-0

[Event "Late-Titled-Tuesday-Blitz-March-19-2024"]
[Site "Chess.com"]
[Date "2024.03.19"]
[Round "10"]
[White "Igrok3069"]
[Black "Harsha_Bharathakoti"]
[Result "0-1"]
[WhiteElo "2878"]
[BlackElo "2962"]
[TimeControl "180+1"]
[EndTime "15:55:40 PDT"]
[Termination "Harsha_Bharathakoti won by resignation"]

1. d4 {[%clk 0:03:00.9]} 1... d5 {[%clk 0:02:59.1]} 2. Nf3 {[%clk 0:03:00.5]}
2... Nf6 {[%clk 0:02:59]} 3. Bf4 {[%clk 0:03:00.2]} 3... e6 {[%clk 0:02:58.1]}
4. e3 {[%clk 0:03:00.5]} 4... Bd6 {[%clk 0:02:57.9]} 5. Bd3 {[%clk 0:03:00.2]}
5... O-O {[%clk 0:02:56.7]} 6. Nbd2 {[%clk 0:02:59.1]} 6... c5 {[%clk
0:02:56.3]} 7. c3 {[%clk 0:02:58.8]} 7... Qc7 {[%clk 0:02:53.6]} 8. Ne5 {[%clk
0:02:52.7]} 8... Nc6 {[%clk 0:02:47.4]} 9. Ndf3 {[%clk 0:02:43.4]} 9... cxd4
{[%clk 0:02:47.4]} 10. exd4 {[%clk 0:02:42.5]} 10... Ne4 {[%clk 0:02:47.4]} 11.
Qe2 {[%clk 0:02:12.3]} 11... f6 {[%clk 0:02:04.3]} 12. Nxc6 {[%clk 0:02:09.3]}
12... Bxf4 {[%clk 0:02:03.2]} 13. Nb4 {[%clk 0:02:09.4]} 13... Nxc3 {[%clk
0:01:46.7]} 14. Qc2 {[%clk 0:02:08.4]} 14... Ne4 {[%clk 0:01:32.4]} 15. Bxe4
{[%clk 0:02:06.1]} 15... dxe4 {[%clk 0:01:32.9]} 16. Qxe4 {[%clk 0:02:06.2]}
16... Bd6 {[%clk 0:01:31.2]} 17. a3 {[%clk 0:01:32.1]} 17... Qc4 {[%clk
0:01:20.4]} 18. Nd3 {[%clk 0:01:12.8]} 18... Bd7 {[%clk 0:01:17.1]} 19. Rc1
{[%clk 0:00:59]} 19... Qd5 {[%clk 0:00:56.9]} 20. Qxd5 {[%clk 0:00:57.5]} 20...
exd5 {[%clk 0:00:57.8]} 21. O-O {[%clk 0:00:33.2]} 21... Rac8 {[%clk 0:00:50.6]}
22. Nc5 {[%clk 0:00:29.8]} 22... Bc6 {[%clk 0:00:50.9]} 23. Rc3 {[%clk
0:00:26.2]} 23... b6 {[%clk 0:00:50.5]} 24. Nd3 {[%clk 0:00:15.4]} 24... Bb5
{[%clk 0:00:49.1]} 25. Rfc1 {[%clk 0:00:14.7]} 25... Rxc3 {[%clk 0:00:48.9]} 26.
Rxc3 {[%clk 0:00:14.9]} 26... Kf7 {[%clk 0:00:43.3]} 27. Nd2 {[%clk 0:00:09.9]}
27... Ke6 {[%clk 0:00:36.6]} 28. Nf1 {[%clk 0:00:08.8]} 28... Ba6 {[%clk
0:00:27.6]} 29. Ne3 {[%clk 0:00:08]} 29... Rc8 {[%clk 0:00:27.8]} 30. Rxc8
{[%clk 0:00:07]} 30... Bxc8 {[%clk 0:00:28.7]} 31. f3 {[%clk 0:00:05.7]} 31...
a5 {[%clk 0:00:26]} 32. Kf2 {[%clk 0:00:05.3]} 32... Ba6 {[%clk 0:00:26.4]} 33.
Nc1 {[%clk 0:00:05.4]} 33... f5 {[%clk 0:00:16.1]} 34. h3 {[%clk 0:00:04.9]}
34... f4 {[%clk 0:00:13.4]} 35. Nc2 {[%clk 0:00:04.9]} 35... Be7 {[%clk
0:00:12.3]} 36. Ne2 {[%clk 0:00:04.9]} 36... Bh4+ {[%clk 0:00:10.9]} 37. Kf1
{[%clk 0:00:04.2]} 37... Bd3 {[%clk 0:00:09.7]} 38. Ne1 {[%clk 0:00:03.6]} 38...
Bc4 {[%clk 0:00:09.9]} 39. Nc2 {[%clk 0:00:03.2]} 39... Kf5 {[%clk 0:00:09.3]}
40. Na1 {[%clk 0:00:02.9]} 40... Bf6 {[%clk 0:00:08.7]} 41. Nc2 {[%clk 0:00:03]}
41... Bd3 {[%clk 0:00:08.5]} 42. Ne1 {[%clk 0:00:03.3]} 42... Ba6 {[%clk
0:00:08]} 43. Kf2 {[%clk 0:00:03.4]} 43... Bh4+ {[%clk 0:00:08.6]} 44. Kf1
{[%clk 0:00:04]} 44... h6 {[%clk 0:00:08.2]} 45. Nc2 {[%clk 0:00:04.1]} 45...
Bd3 {[%clk 0:00:07.7]} 46. Ne1 {[%clk 0:00:04.4]} 46... Bc4 {[%clk 0:00:07.1]}
47. Nc2 {[%clk 0:00:04.6]} 47... Ke6 {[%clk 0:00:07.6]} 48. Ne1 {[%clk
0:00:04.4]} 48... Kd6 {[%clk 0:00:07.8]} 49. Nc2 {[%clk 0:00:04.1]} 49... Kc6
{[%clk 0:00:08.5]} 50. a4 {[%clk 0:00:04.6]} 50... Bb3 {[%clk 0:00:02.4]} 51.
Ne1 {[%clk 0:00:04.5]} 51... Bxa4 {[%clk 0:00:01.6]} 52. Nd3 {[%clk 0:00:05.1]}
52... g5 {[%clk 0:00:01.6]} 53. Ne5+ {[%clk 0:00:04.9]} 53... Kb5 {[%clk
0:00:02.2]} 54. Nf7 {[%clk 0:00:05.2]} 54... Kb4 {[%clk 0:00:02.7]} 55. Nc1
{[%clk 0:00:04.9]} 55... Kc4 {[%clk 0:00:02.2]} 56. Nxh6 {[%clk 0:00:04.7]}
56... Kxd4 {[%clk 0:00:02.8]} 57. Nf5+ {[%clk 0:00:05.5]} 57... Ke5 {[%clk
0:00:02.9]} 58. Ne7 {[%clk 0:00:04.6]} 58... Bb5+ {[%clk 0:00:03.2]} 59. Kg1
{[%clk 0:00:02.8]} 59... Kd6 {[%clk 0:00:02.9]} 60. Nf5+ {[%clk 0:00:02.9]}
60... Ke5 {[%clk 0:00:03.6]} 61. Nh6 {[%clk 0:00:02.1]} 61... d4 {[%clk
0:00:02.7]} 62. Ng4+ {[%clk 0:00:03]} 62... Kd5 {[%clk 0:00:03.4]} 63. Nf6+
{[%clk 0:00:02.3]} 63... Kc4 {[%clk 0:00:04.1]} 64. Ne4 {[%clk 0:00:03.2]} 64...
d3 {[%clk 0:00:04]} 65. Nd2+ {[%clk 0:00:03.6]} 65... Kd4 {[%clk 0:00:04.4]} 66.
Nf1 {[%clk 0:00:01.9]} 66... Bc4 {[%clk 0:00:03.4]} 67. b3 {[%clk 0:00:01.6]}
67... Bd5 {[%clk 0:00:03.2]} 68. g3 {[%clk 0:00:02.5]} 68... fxg3 {[%clk
0:00:03.2]} 69. Kg2 {[%clk 0:00:03.2]} 69... b5 {[%clk 0:00:03.4]} 70. Nd2
{[%clk 0:00:03.5]} 70... a4 {[%clk 0:00:03.9]} 71. bxa4 {[%clk 0:00:03.8]} 71...
bxa4 {[%clk 0:00:04.8]} 72. Ne4 {[%clk 0:00:03.2]} 72... Bxe4 {[%clk 0:00:05]}
73. fxe4 {[%clk 0:00:04.1]} 73... Kxe4 {[%clk 0:00:05.7]} 74. Na2 {[%clk
0:00:04.3]} 74... a3 {[%clk 0:00:04.7]} 75. Nc3+ {[%clk 0:00:04.5]} 75... Ke3
{[%clk 0:00:05.4]} 76. Nd5+ {[%clk 0:00:04.5]} 76... Kd4 {[%clk 0:00:06.1]} 77.
Nb4 {[%clk 0:00:04.6]} 77... d2 {[%clk 0:00:06.7]} 78. Nc2+ {[%clk 0:00:05.1]}
78... Kc3 {[%clk 0:00:07.4]} 79. Ne3 {[%clk 0:00:05.1]} 79... a2 {[%clk
0:00:08.1]} 80. Nd1+ {[%clk 0:00:05.6]} 80... Kc2 {[%clk 0:00:08.2]} 81. Ne3+
{[%clk 0:00:05.2]} 81... Kc1 {[%clk 0:00:09]} 0-1

[Event "Late-Titled-Tuesday-Blitz-March-19-2024"]
[Site "Chess.com"]
[Date "2024.03.19"]
[Round "10"]
[White "FaustinoOro"]
[Black "HajiyevKanan"]
[Result "1-0"]
[WhiteElo "2845"]
[BlackElo "2533"]
[TimeControl "180+1"]
[EndTime "15:55:45 PDT"]
[Termination "FaustinoOro won on time"]

1. e4 {[%clk 0:03:00.9]} 1... c6 {[%clk 0:03:00.2]} 2. d4 {[%clk 0:02:58.3]}
2... d5 {[%clk 0:03:01.1]} 3. Nc3 {[%clk 0:02:58.9]} 3... a6 {[%clk 0:03:01.2]}
4. Nf3 {[%clk 0:02:52.5]} 4... Bg4 {[%clk 0:03:00.5]} 5. Be2 {[%clk 0:02:48.4]}
5... e6 {[%clk 0:03:00.4]} 6. h3 {[%clk 0:02:46.6]} 6... Bh5 {[%clk 0:03:00]} 7.
O-O {[%clk 0:02:43.1]} 7... Nf6 {[%clk 0:03:00]} 8. e5 {[%clk 0:02:36.6]} 8...
Nfd7 {[%clk 0:03:00.3]} 9. Ne1 {[%clk 0:02:34.1]} 9... Bg6 {[%clk 0:03:00.1]}
10. f4 {[%clk 0:02:31.4]} 10... c5 {[%clk 0:03:00.5]} 11. dxc5 {[%clk
0:02:29.5]} 11... Bxc5+ {[%clk 0:02:58.7]} 12. Kh1 {[%clk 0:02:29.9]} 12... O-O
{[%clk 0:02:59.3]} 13. Bd3 {[%clk 0:02:26.4]} 13... Nc6 {[%clk 0:02:52.3]} 14.
Ne2 {[%clk 0:02:25.9]} 14... Rc8 {[%clk 0:02:45.4]} 15. a3 {[%clk 0:02:23.9]}
15... b5 {[%clk 0:02:34.3]} 16. Ng3 {[%clk 0:02:03.2]} 16... Qh4 {[%clk
0:02:27.3]} 17. Kh2 {[%clk 0:02:00.3]} 17... Qe7 {[%clk 0:01:46.7]} 18. Nf3
{[%clk 0:01:55]} 18... Bxd3 {[%clk 0:01:35.7]} 19. Qxd3 {[%clk 0:01:55]} 19...
f5 {[%clk 0:01:34.6]} 20. exf6 {[%clk 0:01:41.4]} 20... Nxf6 {[%clk 0:01:32.4]}
21. Qe2 {[%clk 0:01:01.1]} 21... Nd4 {[%clk 0:01:25.8]} 22. Nxd4 {[%clk
0:00:58.2]} 22... Bxd4 {[%clk 0:01:26.7]} 23. Nf5 {[%clk 0:00:54.1]} 23... Qa7
{[%clk 0:01:03.8]} 24. Qxe6+ {[%clk 0:00:50.2]} 24... Kh8 {[%clk 0:01:04.3]} 25.
Nxd4 {[%clk 0:00:46.8]} 25... Qxd4 {[%clk 0:01:04]} 26. c3 {[%clk 0:00:47.1]}
26... Qe4 {[%clk 0:00:46.8]} 27. Qxe4 {[%clk 0:00:46.1]} 27... Nxe4 {[%clk
0:00:44.1]} 28. Be3 {[%clk 0:00:45.6]} 28... a5 {[%clk 0:00:34.8]} 29. Rad1
{[%clk 0:00:37.9]} 29... Rfd8 {[%clk 0:00:34.9]} 30. Rd3 {[%clk 0:00:35.2]}
30... Rd6 {[%clk 0:00:33.7]} 31. Rfd1 {[%clk 0:00:34.8]} 31... Rcd8 {[%clk
0:00:32.9]} 32. Bd4 {[%clk 0:00:35]} 32... Kg8 {[%clk 0:00:32]} 33. Be5 {[%clk
0:00:28.7]} 33... R6d7 {[%clk 0:00:31.2]} 34. Rd4 {[%clk 0:00:25.7]} 34... g6
{[%clk 0:00:31.5]} 35. g4 {[%clk 0:00:20.4]} 35... Kf7 {[%clk 0:00:31.7]} 36.
Kg2 {[%clk 0:00:21]} 36... Ke6 {[%clk 0:00:31]} 37. Kf3 {[%clk 0:00:21.5]} 37...
Nc5 {[%clk 0:00:30.6]} 38. Re1 {[%clk 0:00:19.6]} 38... Ne4 {[%clk 0:00:26.8]}
39. Rd3 {[%clk 0:00:19.3]} 39... h5 {[%clk 0:00:23.8]} 40. gxh5 {[%clk
0:00:12.5]} 40... gxh5 {[%clk 0:00:24.3]} 41. Rg1 {[%clk 0:00:12.8]} 41... Kf5
{[%clk 0:00:24]} 42. Bd4 {[%clk 0:00:11]} 42... a4 {[%clk 0:00:20.9]} 43. Rdd1
{[%clk 0:00:10]} 43... h4 {[%clk 0:00:18.8]} 44. Rg4 {[%clk 0:00:09.3]} 44...
Rh7 {[%clk 0:00:19]} 45. Rdg1 {[%clk 0:00:08.6]} 45... Nd2+ {[%clk 0:00:18.3]}
46. Ke2 {[%clk 0:00:08.7]} 46... Ne4 {[%clk 0:00:19]} 47. Be5 {[%clk 0:00:08.4]}
47... Ng3+ {[%clk 0:00:18.7]} 48. Kf3 {[%clk 0:00:08.2]} 48... Rdd7 {[%clk
0:00:15.9]} 49. Rg5+ {[%clk 0:00:08]} 49... Ke6 {[%clk 0:00:15.6]} 50. Kg4
{[%clk 0:00:08.7]} 50... Ne4 {[%clk 0:00:13.4]} 51. Rg6+ {[%clk 0:00:09]} 51...
Kf7 {[%clk 0:00:13.9]} 52. f5 {[%clk 0:00:07.4]} 52... Rb7 {[%clk 0:00:11.8]}
53. Bd4 {[%clk 0:00:07.2]} 53... Nd2 {[%clk 0:00:09.3]} 54. Kf4 {[%clk
0:00:07.1]} 54... Nc4 {[%clk 0:00:08.7]} 55. R1g2 {[%clk 0:00:04.5]} 55... Ke7
{[%clk 0:00:08.6]} 56. Re6+ {[%clk 0:00:04.6]} 56... Kd7 {[%clk 0:00:08.7]} 57.
Re1 {[%clk 0:00:03.1]} 57... Rf7 {[%clk 0:00:08.4]} 58. f6 {[%clk 0:00:03.5]}
58... Rc7 {[%clk 0:00:06.1]} 59. Rg7 {[%clk 0:00:03.7]} 59... Kc6 {[%clk
0:00:04.7]} 60. Rxf7 {[%clk 0:00:02.9]} 60... Rxf7 {[%clk 0:00:05.6]} 61. Kf5
{[%clk 0:00:02.9]} 61... Nd6+ {[%clk 0:00:05.6]} 62. Kg6 {[%clk 0:00:03.4]}
62... Kd7 {[%clk 0:00:05.3]} 63. Bc5 {[%clk 0:00:03]} 63... Rxf6+ {[%clk
0:00:02.1]} 64. Kxf6 {[%clk 0:00:03.1]} 64... Ne4+ {[%clk 0:00:03]} 65. Rxe4
{[%clk 0:00:03.6]} 65... dxe4 {[%clk 0:00:03.9]} 66. Kg5 {[%clk 0:00:04]} 66...
Kc6 {[%clk 0:00:04.7]} 67. Be3 {[%clk 0:00:04]} 67... Kd5 {[%clk 0:00:05.4]} 68.
Kf4 {[%clk 0:00:04.5]} 68... Kc4 {[%clk 0:00:05.2]} 69. Kxe4 {[%clk 0:00:04.9]}
69... Kb3 {[%clk 0:00:06]} 70. Bc5 {[%clk 0:00:04.5]} 70... Kxb2 {[%clk
0:00:06.2]} 71. Bb4 {[%clk 0:00:05.2]} 71... Kc2 {[%clk 0:00:04.8]} 72. Kf4
{[%clk 0:00:05.5]} 72... Kd3 {[%clk 0:00:05.7]} 73. Kg4 {[%clk 0:00:06.2]} 73...
Ke4 {[%clk 0:00:06.4]} 74. Kxh4 {[%clk 0:00:06.8]} 74... Kf4 {[%clk 0:00:07.3]}
75. Kh5 {[%clk 0:00:07.2]} 75... Kf5 {[%clk 0:00:08.1]} 76. h4 {[%clk
0:00:07.2]} 76... Kf6 {[%clk 0:00:08.3]} 77. Kg4 {[%clk 0:00:07.7]} 77... Ke5
{[%clk 0:00:07.9]} 78. h5 {[%clk 0:00:07.6]} 78... Kf6 {[%clk 0:00:08.5]} 79.
Kf4 {[%clk 0:00:07.9]} 79... Ke6 {[%clk 0:00:08.8]} 80. Kg5 {[%clk 0:00:07.6]}
80... Kf7 {[%clk 0:00:09.2]} 81. h6 {[%clk 0:00:08.1]} 81... Kg8 {[%clk
0:00:09.2]} 82. Kg6 {[%clk 0:00:08.7]} 82... Kh8 {[%clk 0:00:09.4]} 83. c4
{[%clk 0:00:07.5]} 83... bxc4 {[%clk 0:00:09.5]} 84. h7 {[%clk 0:00:06.7]} 1-0